{"text_format":"2","workbook":"xlsx","n_sheets":1,"sheets":["nota integrativa"],"not_rendered":{"charts":0,"images":0,"macros":0,"external_links":5,"defined_names":32,"comments":0,"pivot_tables":0},"unopened":[],"bounds":{"document_bytes":16777216,"sheet_cells":100000,"run_cost":"one","rows_first":2000,"rows_last":500,"rows_between":2000,"halvings":0,"cell_chars":16384,"cell_head_chars":4096},"cells_cut":0,"cells_raw":0,"read":"whole","date_system":"1900"}

{"sheet":"nota integrativa","index":0,"n_rows":318,"n_cols":16,"rows_kept":318,"cut":false,"hidden":false,"merged":[[309,1,309,3],[309,4,309,6],[309,7,309,8],[311,0,311,8],[313,0,313,8],[303,0,303,8],[305,0,305,8],[307,1,307,3],[307,4,307,6],[307,7,307,8],[308,1,308,3],[308,4,308,6],[308,7,308,8],[291,0,291,8],[293,0,293,8],[295,0,295,8],[297,0,297,8],[299,0,299,8],[301,0,301,8],[284,1,284,5],[285,1,285,5],[286,1,286,5],[287,1,287,5],[288,1,288,5],[289,1,289,5],[276,3,276,5],[277,3,277,5],[279,0,279,8],[281,1,281,5],[282,1,282,5],[283,1,283,5],[263,2,263,7],[264,2,264,7],[266,1,266,6],[271,0,271,8],[273,0,273,8],[274,0,274,8],[256,2,256,7],[257,2,257,7],[259,1,259,6],[260,2,260,7],[261,2,261,7],[262,2,262,7],[250,1,250,6],[251,1,251,6],[252,1,252,6],[253,1,253,7],[254,1,254,8],[255,1,255,6],[244,1,244,6],[245,1,245,6],[246,1,246,6],[247,1,247,7],[248,1,248,6],[249,1,249,6],[236,0,236,8],[238,0,238,8],[240,1,240,8],[241,1,241,5],[242,1,242,6],[243,1,243,6],[227,2,227,4],[229,0,229,8],[230,0,230,8],[232,0,232,8],[234,0,234,8],[235,0,235,8],[219,0,219,8],[222,2,222,4],[223,2,223,4],[224,2,224,4],[225,2,225,4],[226,2,226,4],[210,2,210,4],[211,2,211,4],[212,2,212,4],[213,2,213,4],[215,0,215,8],[217,0,217,8],[204,2,204,4],[205,2,205,4],[206,2,206,4],[207,0,207,8],[208,0,208,8],[209,0,209,8],[193,2,193,4],[194,2,194,4],[195,2,195,4],[198,0,198,8],[200,0,200,8],[202,0,202,8],[182,2,182,4],[183,2,183,4],[185,0,185,8],[187,0,187,8],[189,0,189,8],[191,0,191,8],[175,0,175,8],[176,0,176,8],[178,2,178,4],[179,2,179,4],[180,2,180,4],[181,2,181,4],[164,0,164,8],[166,0,166,8],[168,0,168,8],[170,0,170,8],[172,0,172,8],[174,0,174,8],[156,2,156,4],[157,2,157,4],[158,2,158,4],[159,2,159,4],[160,2,160,4],[162,0,162,8],[148,0,148,8],[150,0,150,8],[152,2,152,4],[153,2,153,4],[154,2,154,4],[155,2,155,4],[136,0,136,1],[136,2,137,2],[139,0,139,1],[139,2,141,2],[142,0,142,1],[142,2,143,2],[126,2,126,4],[127,0,127,1],[127,2,128,2],[130,0,130,1],[130,2,131,2],[133,0,133,1],[133,2,134,2],[124,0,125,1],[124,2,125,4],[124,5,125,5],[124,6,125,6],[124,7,125,7],[124,8,125,8],[114,0,114,8],[115,0,115,8],[116,0,116,8],[118,0,118,8],[120,0,120,8],[122,0,122,8],[102,0,102,5],[104,0,104,8],[106,0,106,8],[108,0,108,8],[110,0,110,8],[112,0,112,8],[94,0,94,8],[96,0,96,8],[98,0,98,5],[99,0,99,5],[100,0,100,5],[101,0,101,5],[85,0,85,8],[87,0,87,8],[88,0,88,8],[89,0,89,8],[90,0,90,8],[91,0,91,8],[74,0,74,8],[75,0,75,8],[77,0,77,8],[81,0,81,8],[83,0,83,8],[78,0,79,8],[66,0,66,8],[68,0,68,8],[69,0,69,8],[70,0,70,8],[71,0,71,8],[72,0,72,8],[61,0,61,1],[61,2,61,4],[62,0,62,1],[62,2,62,4],[63,0,63,1],[63,2,63,4],[58,0,58,1],[58,2,58,4],[59,0,59,1],[59,2,59,4],[60,0,60,1],[60,2,60,4],[55,0,55,1],[55,2,55,4],[56,0,56,1],[56,2,56,4],[57,0,57,1],[57,2,57,4],[52,0,52,1],[52,2,52,4],[53,0,53,1],[53,2,53,4],[54,0,54,1],[54,2,54,4],[46,0,46,8],[47,0,47,8],[48,0,48,8],[49,0,50,1],[49,2,50,4],[51,0,51,1],[51,2,51,4],[38,0,38,8],[39,0,39,8],[40,0,40,8],[42,0,42,8],[44,0,44,8],[45,0,45,8],[0,0,0,8],[20,0,20,8],[21,0,21,8],[35,0,35,8],[36,0,36,8],[37,0,37,8]]}
["Comune di RANZANICO",{"$nulls":8}," "]
[]
[]
[]
[]
[]
["  "]
[" "]
[" "]
[" "]
[" "]
[" "]
[" "]
[" "]
[" "]
[" "]
[" "]
[" "]
[" "]
[" "]
["NOTA INTEGRATIVA AL BILANCIO DI "]
["PREVISIONE 2016-2018 "]
[" "]
[" "]
[" "]
[" "]
[" "]
[" "]
[" "]
[" "]
[" "]
[" "]
["Premessa "]
[" "]
[]
["La presente nota integrativa è prevista dal punto 9.11 del “Principio contabile applicato concernente la programmazione del bilancio” allegato al D. Lgs. 118 del 23.06.2011, come modificato dal D. Lgs. n. 126 del 10.08.2014."]
["Il contenuto della nota integrativa è determinato dal principio sopra citato ed ha la funzione di integrare i dati quantitativi esposti negli schemi di bilancio al fine di rendere più chiara e significativa la lettura dello stesso."]
["Il presente documento ha essenzialmente tre funzioni:"]
["•      Analitico-descrittiva, che dà l’illustrazione di dati che per la loro sinteticità non sono in grado di essere pienamente compresi;"]
["•      Informativa, che prevede l’indicazione di ulteriori dati che non possono essere inseriti nei documenti quantitativo-contabili;"]
["•      Esplicativa, che si traduce nell’evidenziazione e nella motivazione delle ipotesi assunte e dei criteri di valutazione adottati e che sono alla base della determinazione dei valori di bilancio."]
[" "]
["1. Criteri di valutazione adottati per la formulazione delle previsioni, con particolare riferimento agli stanziamenti riguardanti gli accantonamenti per le spese potenziali e al fondo crediti di dubbia esigibilità, dando illustrazione dei crediti per i quali non è previsto l’accantonamento a tale fondo."]
[" "]
["Le previsioni del bilancio  sono state effettuate in base ai principi allegati al D.Lgs. 118/2011 ed ai risultati delle precedenti gestioni di bilancio."]
["Non sono stati effettuati accantonamenti per spese potenziali poiché, al momento della stesura del bilancio, non si ravvisano segnali o indicazioni che possano far ritenere effettiva questa eventualità. Il fondo crediti di dubbia esigibilità è stato costituito accantonando una quota delle entrate accertate per competenza ed oggetto di analisi secondo le disposizioni dei nuovi principi contabili."]
["Oltre l’accantonamento previsto per l’indennità di fine mandato del Sindaco, istituito per ciascun anno del triennio considerato secondo il principio cantabile applicato concernente la contabilità finanziaria di cui all’all.4/2 del D.Lgs.118/2001, non si è ravvisata la necessità di istituire ulteriori accantonamenti in sede di bilancio di previsione , anche per evitare di distrarre risorse alla gestione.  Di seguito sono analizzate le principali voci di entrata:"]
[]
["RIEPILOGO GENERALE ENTRATE PER TITOLI"]
["TITOLO",null,"DENOMINAZIONE"]
[{"$nulls":5},"PREV.DEF.\no REND.","PREVISIONI \nANNO 2016","PREVISIONI              ANNO 2017","PREVISIONI                     ANNO 2018"]
[null,null,"Fondo pluriennale vincolato per spese correnti ",null,null,{"$f":"[5]PAREGGIO!B4","v":22419.14},{"$f":"[5]PAREGGIO!C4","v":21426.62},{"$f":"[5]PAREGGIO!D4","v":0},{"$f":"[5]PAREGGIO!E4","v":0}]
[null,null,"Fondo pluriennale vincolato per spese in conto capitale ",null,null,{"$f":"[5]PAREGGIO!B5","v":76819.86},{"$f":"[5]PAREGGIO!C5","v":373709.63},{"$f":"[5]PAREGGIO!D5","v":0},{"$f":"[5]PAREGGIO!E5","v":0}]
[null,null,"Utilizzo avanzo di Amministrazione ",null,null,{"$f":"[5]PAREGGIO!B3","v":0},{"$f":"[5]PAREGGIO!C3","v":0},{"$f":"[5]PAREGGIO!D3","v":0},{"$f":"[5]PAREGGIO!E3","v":0}]
[null,null,"- di cui avanzo vincolato utilizzato anticipatamente ",null,null,0,0,0,0]
[1,null,"Entrate correnti di natura tributaria, contributiva e perequativa",null,null,{"$f":"[5]PAREGGIO!B7","v":855600},{"$f":"[5]PAREGGIO!C7","v":831900},{"$f":"[5]PAREGGIO!D7","v":817900},{"$f":"[5]PAREGGIO!E7","v":820900}]
[2,null,"Trasferimenti correnti",null,null,{"$f":"[5]PAREGGIO!B8","v":15200},{"$f":"[5]PAREGGIO!C8","v":19700},{"$f":"[5]PAREGGIO!D8","v":16200},{"$f":"[5]PAREGGIO!E8","v":16200}]
[3,null,"Entrate extratributarie",null,null,{"$f":"[5]PAREGGIO!B9","v":160450},{"$f":"[5]PAREGGIO!C9","v":149635},{"$f":"[5]PAREGGIO!D9","v":137895},{"$f":"[5]PAREGGIO!E9","v":137390}]
[4,null,"Entrate in conto capitale",null,null,{"$f":"[5]PAREGGIO!B10","v":607400},{"$f":"[5]PAREGGIO!C10","v":524000},{"$f":"[5]PAREGGIO!D10","v":175000},{"$f":"[5]PAREGGIO!E10","v":85000}]
[5,null,"Entrate da riduzione di attività finanziarie",null,null,{"$f":"[5]PAREGGIO!B11","v":0},{"$f":"[5]PAREGGIO!C11","v":0},{"$f":"[5]PAREGGIO!D11","v":0},{"$f":"[5]PAREGGIO!E11","v":0}]
[6,null,"Accensione prestiti",null,null,{"$f":"[5]PAREGGIO!B12","v":0},{"$f":"[5]PAREGGIO!C12","v":0},{"$f":"[5]PAREGGIO!D12","v":0},{"$f":"[5]PAREGGIO!E12","v":0}]
[7,null,"Anticipazioni da istituto tesoriere/cassiere",null,null,{"$f":"[5]PAREGGIO!B13","v":0},{"$f":"[5]PAREGGIO!C13","v":0},{"$f":"[5]PAREGGIO!D13","v":0},{"$f":"[5]PAREGGIO!E13","v":0}]
[9,null,"Entrate per conto terzi e partite di giro",null,null,{"$f":"[5]PAREGGIO!B14","v":413630},{"$f":"[5]PAREGGIO!C14","v":410650},{"$f":"[5]PAREGGIO!D14","v":410750},{"$f":"[5]PAREGGIO!E14","v":410750}]
[null,null,"totale generale delle entrate",null,null,{"$f":"SUM(F52:F63)","v":2151519},{"$f":"SUM(G52:G63)","v":2331021.25},{"$f":"SUM(H52:H63)","v":1557745},{"$f":"SUM(I52:I63)","v":1470240}]
[" "]
[" "]
["Titolo I: Entrate correnti di natura tributaria, contributiva e perequativa."]
[" "]
["Imposta municipale propria (Imu):"]
["L’imposta municipale propria è confermata nella misura approvata per l’esercizio 2015 con le seguenti aliquote:"]
["•    aliquota 0,40% per l’unità immobiliare adibita ad abitazione principale del soggetto passivo classificata nelle categorie catastali A/1, A/8 e A/9 nonché per le relative pertinenze,  per unità immobiliari di cui siano proprietari o usufruttuari anziani o disabili che acquisiscono la residenza in istituti di ricovero o sanitari a seguito di ricovero permanente, purchè la stessa non sia data in locazione, per unità immobiliari possedute dai cittadini italiani residenti all’estero a titolo di proprietà o di usufrutto in Italia, a condizione che non risulti locata;"]
["•    aliquota 10,6% per aree edificabili;"]
["•    aliquota 10,6% tutti gli altri fabbricati;  "]
[" "]
["Addizionale comunale all’ irpef."]
["E’ confermata nella misura vigente nel 2015 (0,4%)",{"$nulls":9}," "]
[" "]
["Tari"]
["L’amministrazione comunale intende apportare una leggera  flessione delle tariffe  in virtù dei minori costi derivati dall'incremento della raccolta differenziata. Per i dettagli si rimanda al Piano Finanziario TARI 2016"]
[]
[]
["Titolo II – Trasferimenti correnti."]
[" "]
["I trasferimenti correnti riguardano le quote di compartecipazione alle spese correnti sostenute dall'ente da parte principalmente di altri enti della pubblica amministrazione quali Stato, Regioni , Comuni e Province oltre che per funzioni proprie per fuznioni delegate e nel triennio non si prevedono scostamenti rilevanti rispetto al trend-storico."]
[]
["Titolo III - Entrate extratributarie"]
[" "]
["La quantificazione di queste entrate fa riferimento a leggi e regolamenti, oltre che all’andamento degli esercizi precedenti. Le voci principali sono:"]
["•      Diritti di segreteria;"]
["•      Sanzioni amministrative per violazione al codice della strada;"]
["•      I rimborsi scolastici (concorso spesa al trasporto scolastico);"]
["•      Gli affitti attivi;"]
["•   I rimborsi per i servizi cimiteriali."]
[]
["Titolo IV – Entrate in conto capitale."]
[" "]
["Questa tipologia di entrata finanzia le spese di investimento e comprende:"]
[{"$nulls":6},2016,2017,2018]
["PROVENTI DA CONCESSIONI EDILIZIE URBANISTICHE",{"$nulls":5},{"$f":"[5]ENTRATA!G129","v":80000},{"$f":"[5]ENTRATA!J129","v":80000},{"$f":"[5]ENTRATA!K129","v":80000}]
[{"$f":"[5]ENTRATA!E120","v":"CONTRIBUTO STATALE PER 3LOTTO RECUPERO PALAZZO RE/MERIS (6000 campanili)"},{"$nulls":5},{"$f":"[5]ENTRATA!G120","v":297000},{"$f":"[5]ENTRATA!J120","v":90000},{"$f":"[5]ENTRATA!K120","v":0}]
[{"$f":"[5]ENTRATA!E121","v":"CONTRIBUTO REGIONALE \"PROGETTO SICUREZZA\" IN GEST.ASSOCIATA"},{"$nulls":5},{"$f":"[5]ENTRATA!G121","v":107000},{"$f":"[5]ENTRATA!J121","v":0},{"$f":"[5]ENTRATA!K121","v":0}]
[{"$f":"[5]ENTRATA!E122","v":"CONCORSO DA COMUNI ASSOCIATI  PER \"PROGETTO SICUREZZA\""},{"$nulls":5},{"$f":"[5]ENTRATA!G122","v":35000},{"$f":"[5]ENTRATA!J122","v":0},{"$f":"[5]ENTRATA!K122","v":0}]
[{"$f":"[5]ENTRATA!E134","v":"FONDO AREE VERDI ex L.R. 12/2005 e s.m.i."},{"$nulls":5},{"$f":"[5]ENTRATA!G134","v":5000},{"$f":"[5]ENTRATA!J134","v":5000},{"$f":"[5]ENTRATA!K134","v":5000}]
[" "]
["Titolo V – Entrate da riduzione di attività finanziarie.",{"$nulls":9}," "]
[" "]
["Nessuna entrata prevista."]
[" "]
["Titolo VI – Accensione di prestiti."]
[" "]
["Nessuna entrata prevista."]
[" "]
["Titolo VII – Anticipazione da Istituto tesoriere/cassiere."]
[" "]
["Data l'ottima liquidità e la gestione ottimale dei flussi di cassa, non è previsto il ricorso all'anticipazione di tesoreria."]
[]
["Titolo XI – Entrate per conto terzi e partite di giro."]
[]
["Di pari importo in entrata e in spesa esse comprendono le per partite di giro ei servizi per conto terzi"]
[]
["Riepilogo generale delle spese per titoli"]
[" "]
["SPESA"]
[]
["TITOLO",null,"DENOMINAZIONE",null,null,"PREV.DEF.\no REND.","PREVISIONI \nANNO 2016","PREVISIONI              ANNO 2017","PREVISIONI                 ANNO 2018"]
[]
[null,null,"DISAVANZO DI AMMINISTRAZIONE",null,null,0,"0,00","0,00","0,00"]
[1,null,"SPESE CORRENTI","previsione di competenza",null,{"$f":"[5]PAREGGIO!B19","v":1011169.1400000002},{"$f":"[5]PAREGGIO!C19","v":986061.62},{"$f":"[5]PAREGGIO!D19","v":941995},{"$f":"[5]PAREGGIO!E19","v":943190}]
[null,null,null,"di cui fondo pluriennale vincolato",null,{"$f":"[5]PAREGGIO!B4","v":22419.14},{"$f":"[5]PAREGGIO!C4","v":21426.62},{"$f":"[5]PAREGGIO!D4","v":0},{"$f":"[5]PAREGGIO!E4","v":0}]
[]
[2,null,"SPESE IN CONTO CAPITALE","previsione di competenza",null,{"$f":"[5]PAREGGIO!B20","v":684219.8600000001},{"$f":"[5]PAREGGIO!C20","v":897709.62999999989},{"$f":"[5]PAREGGIO!D20","v":175000},{"$f":"[5]PAREGGIO!E20","v":85000}]
[null,null,null,"di cui fondo pluriennale vincolato",null,{"$f":"[5]PAREGGIO!B5","v":76819.86},{"$f":"[5]PAREGGIO!C5","v":373709.63},{"$f":"[5]PAREGGIO!D5","v":0},{"$f":"[5]PAREGGIO!E5","v":0}]
[]
[3,null,"SPESE PER INCREMENTO DI ATT. FINANZIARIE","previsione di competenza",null,{"$f":"[5]PAREGGIO!B21","v":0},{"$f":"[5]PAREGGIO!C21","v":0},{"$f":"[5]PAREGGIO!D21","v":0},{"$f":"[5]PAREGGIO!E21","v":0}]
[null,null,null,"di cui fondo pluriennale vincolato",null,0,0,0,0]
[]
[4,null,"RIMBORSO DI PRESTITI","previsione di competenza",null,{"$f":"[5]PAREGGIO!B22","v":42500},{"$f":"[5]PAREGGIO!C22","v":36600},{"$f":"[5]PAREGGIO!D22","v":30000},{"$f":"[5]PAREGGIO!E22","v":31300}]
[null,null,null,"di cui fondo pluriennale vincolato",null,0,"0,00","(0,00)","(0,00)"]
[]
[5,null,"CHIUSURA ANTICIPAZIONI DA ISTITUTO TESORIERE/ CASSIERE","previsione di competenza",null,{"$f":"[5]PAREGGIO!B23","v":0},{"$f":"[5]PAREGGIO!C23","v":0},{"$f":"[5]PAREGGIO!D23","v":0},{"$f":"[5]PAREGGIO!E23","v":0}]
[null,null,null,"di cui fondo pluriennale vincolato",null,"(0,00)","0,00","(0,00)","(0,00)"]
[]
[7,null,"SPESE PER CONTO TERZI E PARTITE DI GIRO","previsione di competenza",null,{"$f":"[5]PAREGGIO!B25","v":413630},{"$f":"[5]PAREGGIO!C25","v":410650},{"$f":"[5]PAREGGIO!D25","v":410750},{"$f":"[5]PAREGGIO!E25","v":410750}]
[null,null,null,"di cui fondo pluriennale vincolato",null,"(0,00)","0,00","(0,00)","(0,00)"]
[]
[null,null,"TOTALE TITOLI","previsione di competenza",null,{"$f":"+F128+F131+F134+F137+F140+F143","v":2151519.0000000005},{"$f":"+G128+G131+G134+G137+G140+G143","v":2331021.25},{"$f":"+H128+H131+H134+H137+H140+H143","v":1557745},{"$f":"+I128+I131+I134+I137+I140+I143","v":1470240}]
[]
[" "]
["TITOLO I – Spese correnti"]
[" "]
["Di seguito sono riepilogate le principali voci di spesa corrente suddivise in macroaggregati:"]
[" "]
[null,null,"Macroaggregati di spesa",null,null,"Anno 2016","Anno 2017","Anno 2018"]
[null,null,"Redditi da lavoro dipendente",null,null,{"$f":"[5]SPESA!J39+[5]SPESA!J117+[5]SPESA!J139+[5]SPESA!J169+[5]SPESA!J303","v":268989.72000000003},{"$f":"[5]SPESA!K39+[5]SPESA!K117+[5]SPESA!K139+[5]SPESA!K169+[5]SPESA!K303","v":246650},{"$f":"[5]SPESA!L39+[5]SPESA!L117+[5]SPESA!L139+[5]SPESA!L169+[5]SPESA!L303","v":246400}]
[null,null,"Imposte e tasse a carico dell'ente",null,null,{"$f":"[5]SPESA!J13+[5]SPESA!J43+[5]SPESA!J100+[5]SPESA!J121+[5]SPESA!J143+[5]SPESA!J173+[5]SPESA!J307","v":19800},{"$f":"[5]SPESA!K13+[5]SPESA!K43+[5]SPESA!K100+[5]SPESA!K121+[5]SPESA!K143+[5]SPESA!K173+[5]SPESA!K307","v":19300},{"$f":"[5]SPESA!L13+[5]SPESA!L43+[5]SPESA!L100+[5]SPESA!L121+[5]SPESA!L143+[5]SPESA!L173+[5]SPESA!L307","v":19300}]
[null,null,"Acquisto di beni e servizi",null,null,{"$f":"+[5]SPESA!J20+[5]SPESA!J63+[5]SPESA!J80+[5]SPESA!J90+[5]SPESA!J106+[5]SPESA!J126+[5]SPESA!J148+[5]SPESA!J181+[5]SPESA!J191+[5]SPESA!J201+[5]SPESA!J237+[5]SPESA!J253+[5]SPESA!J280+[5]SPESA!J292+[5]SPESA!J319+[5]SPESA!J334+[5]SPESA!J360+[5]SPESA!J383+[5]SPESA!J407","v":338846.9},{"$f":"+[5]SPESA!K20+[5]SPESA!K63+[5]SPESA!K80+[5]SPESA!K90+[5]SPESA!K106+[5]SPESA!K126+[5]SPESA!K148+[5]SPESA!K181+[5]SPESA!K191+[5]SPESA!K201+[5]SPESA!K237+[5]SPESA!K253+[5]SPESA!K280+[5]SPESA!K292+[5]SPESA!K319+[5]SPESA!K334+[5]SPESA!K360+[5]SPESA!K383+[5]SPESA!K407","v":318880},{"$f":"+[5]SPESA!L20+[5]SPESA!L63+[5]SPESA!L80+[5]SPESA!L90+[5]SPESA!L106+[5]SPESA!L126+[5]SPESA!L148+[5]SPESA!L181+[5]SPESA!L191+[5]SPESA!L201+[5]SPESA!L237+[5]SPESA!L253+[5]SPESA!L280+[5]SPESA!L292+[5]SPESA!L319+[5]SPESA!L334+[5]SPESA!L360+[5]SPESA!L383+[5]SPESA!L407","v":318500},null,null,338846,{"$f":"F156-K156","v":0.90000000002328306},318880,{"$f":"G156-M156","v":0},318500,{"$f":"H156-O156","v":0}]
[null,null,"Trasferimenti correnti",null,null,{"$f":"+[5]SPESA!J24+[5]SPESA!J69+[5]SPESA!J130+[5]SPESA!J152+[5]SPESA!J158+[5]SPESA!J205+[5]SPESA!J218+[5]SPESA!J224+[5]SPESA!J242+[5]SPESA!J257+[5]SPESA!J269+[5]SPESA!J284+[5]SPESA!J338+[5]SPESA!J354+[5]SPESA!J364+[5]SPESA!J377+[5]SPESA!J387+[5]SPESA!J393+[5]SPESA!J399+[5]SPESA!J370","v":292790},{"$f":"+[5]SPESA!K24+[5]SPESA!K69+[5]SPESA!K130+[5]SPESA!K152+[5]SPESA!K158+[5]SPESA!K205+[5]SPESA!K218+[5]SPESA!K224+[5]SPESA!K242+[5]SPESA!K257+[5]SPESA!K269+[5]SPESA!K284+[5]SPESA!K338+[5]SPESA!K354+[5]SPESA!K364+[5]SPESA!K377+[5]SPESA!K387+[5]SPESA!K393+[5]SPESA!K399+[5]SPESA!K370","v":290340},{"$f":"+[5]SPESA!L24+[5]SPESA!L69+[5]SPESA!L130+[5]SPESA!L152+[5]SPESA!L158+[5]SPESA!L205+[5]SPESA!L218+[5]SPESA!L224+[5]SPESA!L242+[5]SPESA!L257+[5]SPESA!L269+[5]SPESA!L284+[5]SPESA!L338+[5]SPESA!L354+[5]SPESA!L364+[5]SPESA!L377+[5]SPESA!L387+[5]SPESA!L393+[5]SPESA!L399+[5]SPESA!L370","v":293240}]
[null,null,"Interessi passivi",null,null,{"$f":"[5]SPESA!J436","v":25460},{"$f":"[5]SPESA!K436","v":23850},{"$f":"[5]SPESA!L436","v":22275}]
[null,null,"Rimborsi e poste correttive delle entrate",null,null,{"$f":"+[5]SPESA!J94","v":4000},{"$f":"+[5]SPESA!K94","v":3500},{"$f":"+[5]SPESA!L94","v":3500}]
[null,null,"Altre spese correnti",null,null,{"$f":"+[5]SPESA!J29+[5]SPESA!J73+[5]SPESA!J84+[5]SPESA!J110+[5]SPESA!J185+[5]SPESA!J323+[5]SPESA!J342+[5]SPESA!J416+[5]SPESA!J422","v":36175},{"$f":"+[5]SPESA!K29+[5]SPESA!K73+[5]SPESA!K84+[5]SPESA!K110+[5]SPESA!K185+[5]SPESA!K323+[5]SPESA!K342+[5]SPESA!K416+[5]SPESA!K422","v":39475},{"$f":"+[5]SPESA!L29+[5]SPESA!L73+[5]SPESA!L84+[5]SPESA!L110+[5]SPESA!L185+[5]SPESA!L323+[5]SPESA!L342+[5]SPESA!L416+[5]SPESA!L422","v":39975}]
[null,null,"Totale titolo I",2697924,2514246,{"$f":"SUM(F154:F160)","v":986061.62000000011},{"$f":"SUM(G154:G160)","v":941995},{"$f":"SUM(H154:H160)","v":943190}]
[" "]
["Nella voce “redditi da lavoro dipendente” sono compresi anche gli oneri previdenziali ed assistenziali a carico dell’ente. Tale macroaggregato è stato quantificato per il biennio successivo, proiettando la situazione attuale. "]
[" "]
["Tra le “imposte e tasse a carico dell’ente” la somma maggiore è rappresentata dall’Irap a carico dell’ente."]
[" "]
["Gli “acquisti dei beni e servizi” comprendono le previsioni di spesa necessarie a garantire il regolare funzionamento e la buona gestione dei servizi."]
[" "]
["Tra i “trasferimenti correnti” sono classificati i contributi che l’amministrazione riconosce annualmente a terzi, siano essi privati cittadini o associazioni oltre alle quote  per i servizi in gestione associata erogate al  Consorzio Servizi  Val"]
[" "]
["Gli “interessi passivi”, sono rappresentati da interessi passivi su mutui in ammortamento nel trienni considerato."]
[" "]
["Tra i “rimborsi e le poste correttive delle entrate” sono compresi gli sgravi e le restituzioni di tributi."]
[" "]
["Le “altre spese correnti” comprendono tutte quelle voci che non trovano collocazione nei precedenti macroaggregati, quali le assicurazioni, la liquidazione dell’iva a debito, il fondo crediti di dubbia esigibilità e il fondo di riserva."]
[]
["Titolo  II – Spese in conto capitale.",{"$nulls":11}," "]
[" "]
[null,null,"Macroaggregati di spesa",null,null,"Anno 2016","Anno 2017","Anno 2018"]
[null,null,"Investimenti fissi lordi e acquisto di terreni ",null,null,{"$f":"[5]SPESA!J452+[5]SPESA!J459+[5]SPESA!J471+[5]SPESA!J495+[5]SPESA!J505+[5]SPESA!J515+[5]SPESA!J525+[5]SPESA!J535+[5]SPESA!J545+[5]SPESA!J557+[5]SPESA!J568","v":893709.63},{"$f":"[5]SPESA!K452+[5]SPESA!K459+[5]SPESA!K471+[5]SPESA!K495+[5]SPESA!K505+[5]SPESA!K515+[5]SPESA!K525+[5]SPESA!K535+[5]SPESA!K545+[5]SPESA!K557+[5]SPESA!K568","v":171000},{"$f":"[5]SPESA!L452+[5]SPESA!L459+[5]SPESA!L471+[5]SPESA!L495+[5]SPESA!L505+[5]SPESA!L515+[5]SPESA!L525+[5]SPESA!L535+[5]SPESA!L545+[5]SPESA!L557+[5]SPESA!L568","v":81000}]
[null,null,"Contributi agli investimenti ",null,null,{"$f":"+[5]SPESA!J482+[5]SPESA!J551","v":4000},{"$f":"+[5]SPESA!K482+[5]SPESA!K551","v":4000},{"$f":"+[5]SPESA!L482+[5]SPESA!L551","v":4000}]
[null,null,"Altri trasferimenti in conto capitale "]
[null,null,"Altre spese in conto capitale "]
[null,null,"Totale titolo II ",null,null,{"$f":"SUM(F180:F183)","v":897709.63},{"$f":"SUM(G180:G183)","v":175000},{"$f":"SUM(H180:H183)","v":85000}]
[" "]
["Nel macroaggregato “Investimenti fissi lordi e acquisto di terreni” sono classificate le spese relative alla realizzazione di nuove opere e agli interventi di manutenzione straordinaria"]
[]
["Titolo III– Spese per incremento di attività finanziarie"]
[]
["In bilancio non emergono valori per questo titolo"]
[" "]
["Titolo IV – Rimborso di prestiti"]
[" "]
[null,null,"Macroaggregati di spesa",null,null,"Anno 2016","Anno 2017","Anno 2018"]
[null,null,"Rimborso prestiti a breve termine "]
[null,null,"Rimborso mutui ed altri finanziamenti a medio lungo termine ",null,null,{"$f":"[5]SPESA!J591","v":36600},{"$f":"[5]SPESA!K591","v":30000},{"$f":"[5]SPESA!L591","v":31300}]
[{"$nulls":4},"Totale titolo IV ",{"$f":"SUM(F195:F196)","v":36600},{"$f":"SUM(G195:G196)","v":30000},{"$f":"SUM(H195:H196)","v":31300}]
[]
["Nel macroaggregato “Rimborso mutui ed altri finanziamenti a medio lungo termine” sono comprese le quote capitale dei mutui in ammortamento nel triennio considerato e la quota capitale del prestito concesso da Regione Lombardia."]
[" "]
["Titolo V – Restituzione anticipazione istituto tesoriere/cassiere"]
[" "]
["In questo titolo trova iscrizione la restituzione dell’anticipazione di tesoreria corrispondente al titolo VII di entrata."]
[" "]
[null,null,"Macroaggregati di spesa",null,null,"Anno 2016","Anno 2017","Anno 2018"]
[null,null,"Restituzione anticipazione di cassa  ",null,null,{"$f":"[5]SPESA!J606","v":0},{"$f":"[5]SPESA!K606","v":0},{"$f":"[5]SPESA!L606","v":0}]
[null,null,"Totale titolo V",null,null,{"$f":"SUM(F206)","v":0},{"$f":"SUM(G206)","v":0},{"$f":"SUM(H206)","v":0}]
[" "]
["Titolo VII – Spese per conto terzi e partite di giro."]
[" "]
[null,null,"Macroaggregati di spesa",null,null,"Anno 2016","Anno 2017","Anno 2018"]
[null,null,"Uscite per partite di giro",null,null,{"$f":"[5]SPESA!J630","v":112500},{"$f":"[5]SPESA!K630","v":112500},{"$f":"[5]SPESA!L630","v":112500}]
[null,null,"Uscite per conto terzi",null,null,{"$f":"[5]SPESA!J641","v":298150},{"$f":"[5]SPESA!K641","v":298250},{"$f":"[5]SPESA!L641","v":298250}]
[null,null,"Totale titolo VII ",null,null,{"$f":"SUM(F212:F213)","v":410650},{"$f":"SUM(G212:G213)","v":410750},{"$f":"SUM(H212:H213)","v":410750}]
[]
["Le spese per conto di terzi e le partite di giro sono state previste a pareggio con le relative entrate di cui al titolo IX."]
[]
["1) Fondo crediti di dubbia esigibilità e fondo di riserva di cassa"]
[]
["La determinazione dell’accantonamento al fondo crediti di dubbia esigibilità è stata preceduta da un’attenta analisi delle entrate dell’ente per l’individuazione delle tipologie stanziate che possono dar luogo alla formazione di crediti di dubbia e difficile esazione. Le poste di entrata ritenute ricadenti in dette tipologie sono:"]
[]
[{"$nulls":5},"Anno 2016","Anno 2017","Anno 2018"]
[null,null,"- Recupero evasione tributaria",null,null,{"$f":"[5]FCDE!L7","v":1744.1905938851653},{"$f":"[5]FCDE!M7","v":2020.7866562664653},{"$f":"[5]FCDE!N7","v":2453.8123683235654}]
[null,null,"- Tassa Rifiuti",null,null,{"$f":"[5]FCDE!L14","v":9940.8371782790273},{"$f":"[5]FCDE!M14","v":11631.065978044051},{"$f":"[5]FCDE!N14","v":14167.711357044253}]
[null,null,"-Sanzioni Amministrative",null,null,{"$f":"[5]FCDE!L21","v":1327.5024881616002},{"$f":"[5]FCDE!M21","v":1689.548621296582},{"$f":"[5]FCDE!N21","v":2051.5947544315636}]
[null,null,"-Affitti da beni immobili",null,null,{"$f":"[5]FCDE!L27","v":905.88671791516617},{"$f":"[5]FCDE!M27","v":1152.9467318920297},{"$f":"[5]FCDE!N27","v":1400.0067458688929}]
[null,null,"Totale FCDE minimo da stanziare",null,null,{"$f":"SUM(F223:F226)","v":13918.416978240959},{"$f":"SUM(G223:G226)","v":16494.347987499128},20073.125225668275]
[null,null,"Totale FCDE previsto nel bilancio",null,null,{"$f":"[5]SPESA!J421","v":13920},{"$f":"[5]SPESA!K421","v":16500},{"$f":"[5]SPESA!L421","v":20100}]
[]
["Sono state poi confrontate le varie metodologie di calcolo previste dai principi contabili e individuata  quella della media semplice, in base al principio della prudenza, trovando il complemento a 100 della percentuale trovata, si è poi provveduto al calcolo dell’accantonamento obbligatorio per ogni singolo anno"]
["E' stanziata nel capitolo relativo al fondo di riserva ordinario e del fondo crediti di dubbia esigibilità la previsione di cassa e costituisce il fondo di riserva per le autorizzazioni di cassa ex art. 166 del TUEL."]
[" "]
["2) Elenco analitico degli utilizzi delle quote vincolate e accantonate del risultato di amministrazione presunto, distinguendo i vincoli derivanti dalla legge e dai principi contabili, dai trasferimenti, da mutui e altri finanziamenti, vincoli formalmente attribuiti dall'ente."]
[" "]
["Con la predisposizione del bilancio di previsione è necessario procedere alla determinazione del risultato di amministrazione presunto che consiste in una previsione ragionevole del risultato di amministrazione dell’esercizio precedente, formulata in base alla situazione dei conti alla data di elaborazione del bilancio di previsione."]
["Al presunto risultato di amministrazione sono stati applicati i  vincoli derivanti dalla gestione precedente."]
["Si riporta la tabella dimostrativa del risultato di amministrazione presunto allegata al bilancio:"]
[" "]
["Determinazione del risultato di amministrazione presunto al 31/12"]
[]
[null,"1) Determinazione del risultato di amministrazione presunto al 31/12/2015:"]
[null," + Risultato di amministrazione iniziale 2015",{"$nulls":6},{"$f":"288407.95-99239","v":189168.95}]
[null," + Fondo pluriennale vincolato iniziale dell'esercizio 2015",{"$nulls":6},{"$f":"22419.14+76819.86","v":99239}]
[null," + Entrate già accertate nell'esercizio 2015",{"$nulls":6},1704072.69]
[null," - Uscite già impegnate nell'esercizio 2015",{"$nulls":6},1370485.2099999997]
[null,"+/- Variazione dei residui attivi già verificatesi nel 2015",{"$nulls":6},16227.62]
[null,"-/+ Variazione dei residui passivi già verificatesi nel 2015",{"$nulls":6},-4641.68]
[null," = Risultato di amministrazione dell'esercizio 2015 e alla data di redazione del\nbilancio dell'anno 2016",{"$nulls":6},{"$f":"I244-I245+I246-I247+I242+I243","v":642864.73000000021}]
[null," + Entrate presunte per il restante periodo dell`esercizio 2015",{"$nulls":6},0]
[null," - Uscite presunte per il restante periodo dell`esercizio 2015",{"$nulls":6},0]
[null,"+/- Variazioni dei residui attivi, presunte per il restante periodo dell`esercizio 2015",{"$nulls":6},0]
[null,"-/+ Variazioni dei residui passivi, presunte per il restante periodo dell`esercizio 2015",{"$nulls":6},0]
[null," - Fondo pluriennale vincolato finale presunto dell'esercizio 2015",{"$nulls":6},{"$f":"[5]PAREGGIO!C4+[5]PAREGGIO!C5","v":395136.25}]
[null,"A) Risultato di amministrazione presunto al 31/12/2015",{"$nulls":6},{"$f":"I248+I249-I250+I251-I252-I253","v":247728.48000000021}]
[null,"2) Composizione del risultato di amministrazione presunto al 31/12/2015:"]
[null,"Parte accantonata"]
[null,null,"Fondo crediti di dubbia esigibilità al 31/12/2015",{"$nulls":5},13800]
[null,null,"altri accantonamenti",{"$nulls":5},2109.12]
[{"$nulls":7},"B) Totale parte accantonata",{"$f":"SUM(I257:I258)","v":15909.119999999999}]
[null,"Parte vincolata"]
[null,null,"Vincoli derivanti da Leggi e principi contabili",{"$nulls":5},9000]
[null,null,"Vincoli derivanti da trasferimenti",{"$nulls":5},0]
[null,null,"Vincoli derivanti dalla contrazione di mutui",{"$nulls":5},0]
[null,null,"Vincoli formalmente attribuiti dall'ente",{"$nulls":5},0]
[null,null,"Altri vincoli da specificare",{"$nulls":5},0]
[{"$nulls":7},"C) Totale parte vincolata",{"$f":"SUM(I261:I265)","v":9000}]
[null,"Parte destinata agli investimenti",{"$nulls":6},0]
[{"$nulls":7},"D) Totale destinata agli investimenti",83826.98]
[{"$nulls":7},"E) Totale parte disponibile ( E=A-B-C-D )",{"$f":"I254-I259-I266-I268","v":138992.38000000024}]
[]
[" "]
["3)  Fondo pluriennale vincolato"]
[" "]
["Il principio della competenza potenziata prevede che il “Fondo pluriennale vincolato” sia uno strumento di rappresentazione della programmazione e previsione delle spese, sia correnti che di investimento, che evidenzi con trasparenza ed attendibilità il procedimento di impiego delle risorse acquisite dall’ente che richiedono un periodo di tempo ultrannuale per il loro effettivo impiego e utilizzo per le finalità programmate e previste."]
["Attuamente il Fondo pluriennale iscritto nel bilancio di previsione è il seguente:"]
[]
[null,null,null,{"$f":"[5]PAREGGIO!A4","v":"F. V. SPESE CORRENTI"},null,null,{"$f":"[5]PAREGGIO!C4","v":21426.62}]
[null,null,null,{"$f":"[5]PAREGGIO!A5","v":"F. V. SPESE INVESTIMENTO"},null,null,{"$f":"[5]PAREGGIO!C5","v":373709.63}]
[" "]
["4)  Elenco degli interventi programmati per spese di investimento finanziati col ricorso al debito e con le risorse disponibili"]
[" "]
[null,{"$f":"[5]SPESA!F451","v":"SISTEMAZIONE ARCHIVIO -"},{"$nulls":4},{"$f":"[5]SPESA!J451","v":2965},{"$f":"[5]SPESA!K451","v":0},{"$f":"[5]SPESA!L451","v":0}]
[null,{"$f":"[5]SPESA!F457","v":"MANUTENZIONE STRAORDINARIA IMMOBILI E BENI DEMANIALI"},{"$nulls":4},{"$f":"[5]SPESA!J457","v":38731.46},{"$f":"[5]SPESA!K457","v":48500},{"$f":"[5]SPESA!L457","v":48500}]
[null,{"$f":"[5]SPESA!F458","v":"RECUPERO PALAZZO RE/MERIS - 3LOTTO (6000 campanili)"},{"$nulls":4},{"$f":"[5]SPESA!J458","v":636569.54},{"$f":"[5]SPESA!K458","v":90000},{"$f":"[5]SPESA!L458","v":0}]
[null,{"$f":"[5]SPESA!F470","v":"PROGETTO SICUREZZA IN GESTIONE ASSOCIATA"},{"$nulls":4},{"$f":"[5]SPESA!J470","v":153000},{"$f":"[5]SPESA!K470","v":0},{"$f":"[5]SPESA!L470","v":0}]
[null,{"$f":"[5]SPESA!F481","v":"FONDO PER BANDO RECUPERO FACCIATE CENTRO STORICO"},{"$nulls":4},{"$f":"[5]SPESA!J481","v":2000},{"$f":"[5]SPESA!K481","v":2000},{"$f":"[5]SPESA!L481","v":2000}]
[null,{"$f":"[5]SPESA!F494","v":"MANUTENZIONE STRAORDINARIA CENTRO SPORTIVO"},{"$nulls":4},{"$f":"[5]SPESA!J494","v":44148},{"$f":"[5]SPESA!K494","v":22500},{"$f":"[5]SPESA!L494","v":22500}]
[null,{"$f":"[5]SPESA!F524","v":"OPERE `FONDO AREE VERDI` L.R. 2/2005 e s.m.i."},{"$nulls":4},{"$f":"[5]SPESA!J524","v":13295.630000000001},{"$f":"[5]SPESA!K524","v":5000},{"$f":"[5]SPESA!L524","v":5000}]
[null,{"$f":"[5]SPESA!F544","v":"ELIMINAZ. BARRIERE ARCHITET. (10% ONERI)"},{"$nulls":4},{"$f":"[5]SPESA!J544","v":5000},{"$f":"[5]SPESA!K544","v":5000},{"$f":"[5]SPESA!L544","v":5000}]
[null,{"$f":"[5]SPESA!F550","v":"FONDO FINANZIAMENTO OPERE RELIGIOSE/SOCIALI (ONERI)"},{"$nulls":4},{"$f":"[5]SPESA!J550","v":2000},{"$f":"[5]SPESA!K550","v":2000},{"$f":"[5]SPESA!L550","v":2000}]
[]
["5)  Oneri e gli impegni finanziari stimati e stanziati in bilancio, derivanti da contratti relativi a strumenti finanziari derivati o da contratti di finanziamento che includono una componente derivata"]
[" "]
["L’ente non ha in essere contratti rientranti nelle tipologie sopra specificate."]
[" "]
["6)  Elenco dei propri enti ed organismi strumentali, precisando che i relativi bilanci consuntivi sono consultabili nel proprio sito internet fermo restando quanto previsto per gli enti locali dall'art. 172, comma 1, lettera a) del Tuel"]
[" "]
["L’ente non possiede organismi strumentali."]
[" "]
["7)  Elenco delle garanzie principali o sussidiarie prestate dall'ente a favore di enti e di altri soggetti ai sensi delle leggi vigenti"]
[" "]
["L'ente non ha prestato garanzie a favore di enti o di altri soggetti."]
[" "]
["8)  Elenco delle partecipazioni possedute con l'indicazione della relativa quota percentuale"]
[" "]
["L’ente ha approvato con deliberazione della Giunta comunale il piano di razionalizzazione delle società partecipate ai sensi dell’art.1 comma 611 e seguenti della Legge n.190/2014, atto a cui si rimanda per maggiori dettagli; di seguito saranno elencate soltanto le società a partecipazione diretta:"]
[]
[" ","Denominazione",null,null,"Funzioni attribuite e attività svolte",null,null,"% Partec."]
[null,"Uniacque spa",null,null,"SERVIZIO IDRICO INTEGRATO",null,null,0.11]
[null,"Valcavallina servizi S.R.L.",null,null,"SERVIZIO RACCOLTA TRASPORTO E SMALTIMENTO RIFIUTI",null,null,0.43]
[" "]
["9)  Altre informazioni riguardanti le previsioni, richieste dalla legge o necessarie per l'interpretazione del bilancio"]
[" "]
["Si rinvia al contenuto del Documento unico di programmazione 2016-2018 e agli allegati al bilancio di previsione 2016-2018."]
[" "]
[" ",null," "," "," "," "," "]
[]
[" "]